Cogmind - Beta 13 @@@ ROGUE MODE // 2024.04.12 @ 11:30:17 Player: Exceptionally Mediocre Result: Destroyed by D-53 Grenadier with Mini Grenade Launcher Performance ------------- Evolutions (0) 0 Regions Visited (4) 800 Robots Destroyed (56) 280 Value Destroyed (921) 921 Prototype IDs (23) 460 Alien Tech Used (0) 0 Bonus (53) 53 TOTAL SCORE: 2514 Bonus ------- High Alert Combat Kills 52 Aligned with FarCom 300 Friendly Fire -299 Cogmind --------- Core Integrity 0/250 Matter 140/300 Energy 250/250 System Corruption 0% Temperature Cool (0) Movement Rolling (110) Ox2 Location -9/Mines Parts ------- > --- POWER (1) -------- Ion Engine > --- PROPULSION (2) --- Wheel > --- UTILITY (2) ------ Large Storage Unit Power Shielding > --- WEAPON (2) ------- Beam Cannon > --- INVENTORY (15) --- Light Nuclear Core Light Nuclear Core Wheel Wheel Large Battery (200) Compact Matter Pod (19) Improved Sensor Array Utility Shielding Heavy Armor Plating Trap Reconfigurator Light Cannon Grenade Launcher Heavy Mace Peak State ------------ > --- POWER ------------ Ion Engine > --- PROPULSION ------- Wheel Wheel > --- UTILITY ---------- Large Storage Unit Power Shielding > --- WEAPON ----------- Light Cannon Heavy Mace > --- INVENTORY -------- Light Nuclear Core Wheel Wheel Wheel Improved Heat Sink Medium Battery Compact Matter Pod Improved Sensor Array Utility Shielding Heavy Armor Plating Beam Cannon Light Cannon Grenade Launcher Rocket Launcher [Rating: 11] Favorites ----------- Power Light Ion Engine Engine Light Ion Engine Propulsion Wheel Wheel Wheel Utility Large Storage Unit Storage Large Storage Unit Protection Power Shielding Weapon Light Cannon Energy Gun Medium Laser Energy Cannon Beam Cannon Ballistic Gun Assault Rifle Ballistic Cannon Light Cannon Launcher Grenade Launcher Impact Weapon Heavy Mace Build | -11 -10 -10 -10 -9 ------- Run | Yrd Mat Min Exi Min Slots Evolved . | . . . . . Power . | . . . . . Propulsion . | . . . . . Utility . | . . . . . Weapon . | . . . . . Parts Attached 36 | 6 13 15 . 2 Power 6 | 1 2 3 . . Engine 6 | 1 2 3 . . Core . | . . . . . Reactor . | . . . . . Propulsion 11 | 2 2 6 . 1 Treads . | . . . . . Leg . | . . . . . Wheel 11 | 2 2 6 . 1 Hover . | . . . . . Flight . | . . . . . Utility 3 | 1 2 . . . Device . | . . . . . Storage 2 | 1 1 . . . Processor . | . . . . . Hackware . | . . . . . Protection 1 | . 1 . . . Artifact . | . . . . . Weapon 16 | 2 7 6 . 1 Energy Gun 1 | 1 . . . . Energy Cannon 4 | . 3 . . 1 Ballistic Gun 1 | 1 . . . . Ballistic Cannon 4 | . 3 1 . . Launcher 5 | . 1 4 . . Special Weapon . | . . . . . Impact Weapon 1 | . . 1 . . Slashing Weapon . | . . . . . Piercing Weapon . | . . . . . Special Melee Weapon . | . . . . . Unidentified Prototypes . | . . . . . Parts Lost 8 | . 1 3 . 4 Power . | . . . . . Propulsion 4 | . . 2 . 2 Utility . | . . . . . Weapon 4 | . 1 1 . 2 Highest Loss Streak 4 | . 1 1 . 4 To Critical Strikes . | . . . . . Average Slot Usage (%) 97 | . 93 99 100 98 Engine 13 | . 13 14 14 14 Wheel 27 | . 28 27 28 28 Storage 14 | . 14 14 14 14 Protection 12 | . 9 14 14 14 Ballistic Gun 4 | . 12 . . . Ballistic Cannon 12 | . 10 14 14 10 Launcher 9 | . 2 12 14 14 Naked Turns . | . . . . . Heaviest Build 33 | 12 30 33 33 33 Greatest Support 26 | 26 26 26 20 20 Greatest Overweight (x) 2 | 2 1 2 1 1 Average Overweight (x) . | . . 1 1 1 Largest Inventory Capacity 15 | 8 15 15 15 15 Average Capacity 13 | 7 13 15 15 15 Most Carried 15 | 8 15 15 15 15 Average Carried 13 | 3 12 14 15 14 Final Capacity 15 | 8 15 15 15 15 Final Carried 15 | 8 15 15 15 14 Class Distribution -------------------- 100% | Mutant Dominant Class ---------------- Mutant | -10/Materials Mutant | -10/Mines Mutant | -10/Exiles Mutant | -9/Mines Resources | -11 -10 -10 -10 -9 ----------- Run | Yrd Mat Min Exi Min Matter Collected 1081 | 290 277 507 . 7 Remotely . | . . . . . Salvage Created 1164 | 166 391 471 . 136 Parts 85 | 9 33 34 . 9 Haulers Intercepted 1 | . 1 . . . Recyclers Shooed 1 | . 1 . . . Parts Field Recycled . | . . . . . Retrieved Matter . | . . . . . Parts Self-Destructed . | . . . . . Prevented . | . . . . . Kills | -11 -10 -10 -10 -9 ------- Run | Yrd Mat Min Exi Min Combat Hostiles Destroyed 52 | . 13 20 . 19 Guns 3 | . 3 . . . Cannons 7 | . 3 4 . . AOE 39 | . 7 13 . 19 Classes Destroyed 9 | 2 5 1 . 1 Worker 3 | . 1 2 . . Builder 1 | . . 1 . . Tunneler 7 | 4 1 2 . . Hauler 1 | . 1 . . . Recycler 3 | 1 . 2 . . Watcher 2 | . 2 . . . Swarmer 22 | . 6 12 . 4 Grunt 17 | . 7 8 . 2 Assembled 15 | . . . . 15 Best Kill Streak 15 | 5 6 9 . 15 Combat Bots Only 15 | . 5 3 . 15 Max Kills in Single Turn 8 | 1 3 3 . 8 Gunslinging . | . . . . . Exploded 8 | . 3 3 . 8 Melee . | . . . . . Uniques/NPCs Destroyed . | . . . . . Combat | -11 -10 -10 -10 -9 -------- Run | Yrd Mat Min Exi Min Hostile Shots Fired 100 | . 29 56 . 15 Missed 28 | . 7 17 . 4 Damage Taken 1116 | . 237 536 . 343 Core 262 | . 38 104 . 120 Absorbed by Shields . | . . . . . Redirected to Shielding 15 | . 4 9 . 2 Core Remaining (%) 100 | 100 . . . . Volleys Fired 108 | 10 40 45 . 13 Largest 2 | 2 2 2 . 1 Hottest 70 | 70 55 70 . 33 Shots Fired 139 | 20 60 46 . 13 Gun 53 | 20 33 . . . Cannon 52 | . 22 30 . . Launcher 34 | . 5 16 . 13 Special . | . . . . . Kinetic 95 | 10 55 30 . . Thermal 10 | 10 . . . . Explosive 34 | . 5 16 . 13 Electromagnetic . | . . . . . Robot Hit Streak 8 | 7 6 8 . 1 Robot Miss Streak 7 | 1 4 4 . 7 Penetration Max . | . . . . . Secondary Targets . | . . . . . Shots Hit Robots 69 | 12 29 27 . 1 Core Hits 90 | 6 26 29 . 29 Critical Kills . | . . . . . Critical Parts Destroyed 2 | . . 2 . . Critical Strikes 3 | 1 . 2 . . Burn 1 | 1 . . . . Smash 2 | . . 2 . . Melee Attacks 7 | . . 7 . . Impact 7 | . . 7 . . Slashing . | . . . . . Piercing . | . . . . . Sneak Attacks . | . . . . . Combat Hostiles . | . . . . . Follow-up Attacks . | . . . . . Damage Inflicted 3715 | 152 728 1663 . 1172 Guns 398 | 152 246 . . . Cannons 504 | . 178 326 . . Explosions 2550 | . 304 1074 . 1172 Melee 263 | . . 263 . . Ramming . | . . . . . Kinetic 776 | 26 424 326 . . Thermal 126 | 126 . . . . Explosive 2550 | . 304 1074 . 1172 Electromagnetic . | . . . . . Impact 263 | . . 263 . . Slashing . | . . . . . Piercing . | . . . . . Highest Corruption . | . . . . . Average Corruption . | . . . . . Corruption Purged . | . . . . . Corruption Blocked . | . . . . . Overload Shots . | . . . . . Overflow Damage 219 | . 19 167 . 33 Projectiles . | . . . . . Explosions 138 | . 19 86 . 33 Melee 81 | . . 81 . . Knockbacks 5 | . 2 3 . . Impact . | . . . . . Kinetic 5 | . 2 3 . . Secondary . | . . . . . Self-Inflicted Damage 212 | . . 108 . 104 Shots 8 | . . 4 . 4 Rammed . | . . . . . Targets Rammed . | . . . . . Kicked . | . . . . . Crushed . | . . . . . Highest Temperature 36 | 36 13 22 . . Average Temperature 9 | 13 4 9 . . Received Heat Transfer 285 | . 114 171 . . Siege Activations . | . . . . . Robots Corrupted . | . . . . . Combat Hostiles . | . . . . . Parts Fried 4 | . . 4 . . Impact Corruptions 4 | . . 4 . . Robots Melted . | . . . . . Combat Hostiles . | . . . . . Parts Melted 1 | 1 . . . . Heat Transferred 444 | 444 . . . . Parts Sabotaged . | . . . . . Parts Stolen . | . . . . . Parts Stripped . | . . . . . Power Chain Reactions . | . . . . . Alert | -11 -10 -10 -10 -9 ------- Run | Yrd Mat Min Exi Min Peak Influence 562 | 25 394 562 . 130 Initial 110 | . 16 110 . . Average 275 | 9 242 355 . 106 Maximum Alert Level 2 | . 1 2 . . Low Security (%) 24 | 100 25 5 . 100 Level 1 54 | . 74 48 . . Level 2 21 | . . 45 . . Level 3 . | . . . . . Level 4 . | . . . . . Level 5 . | . . . . . High Security . | . . . . . Max Security . | . . . . . Squads Dispatched 4 | . 3 1 . . Investigation 4 | . 3 1 . . Extermination . | . . . . . Reinforcement . | . . . . . Assault . | . . . . . Garrison . | . . . . . Intercept . | . . . . . Searches Triggered . | . . . . . Construction Impeded . | . . . . . Haulers Reinforced . | . . . . . Active Scanning Responses . | . . . . . Cargo Convoy Interrupts . | . . . . . Stealth | -11 -10 -10 -10 -9 --------- Run | Yrd Mat Min Exi Min Distress Signals 3 | . 2 1 . . Communications Jammed . | . . . . . Distress Signals . | . . . . . Times Spotted 60 | . 17 20 . 23 Peak Tracking Total 15 | . 5 3 . 15 Tactical Retreats 3 | . . 2 . 1 Traps | -11 -10 -10 -10 -9 ------- Run | Yrd Mat Min Exi Min Traps Triggered 2 | . 2 . . . Indirectly . | . . . . . Trap Hack Attempts . | . . . . . Triggered . | . . . . . Disarmed . | . . . . . Reprogrammed . | . . . . . Reused . | . . . . . Traps Extracted . | . . . . . Installed . | . . . . . Triggered . | . . . . . Machines | -11 -10 -10 -10 -9 ---------- Run | Yrd Mat Min Exi Min Machines Disabled 3 | . . 3 . . Max in Single Turn 2 | . . 2 . . Machines Repaired . | . . . . . Machines Dismantled . | . . . . . Machines Sabotaged . | . . . . . Overloaded Fab Kills . | . . . . . Hacking | -11 -10 -10 -10 -9 --------- Run | Yrd Mat Min Exi Min Machines Accessed 12 | . 9 2 1 . Terminals 8 | . 7 1 . . Fabricators . | . . . . . Repair Stations . | . . . . . Recycling Units 2 | . 2 . . . Scanalyzers . | . . . . . Garrison Access . | . . . . . Total Hacks 35 | . 30 4 1 . Successful 22 | . 18 3 1 . Failed 13 | . 12 1 . . Catastrophic 1 | . 1 . . . Database Lockouts . | . . . . . Manual 31 | . 27 3 1 . Terminals 30 | . 27 3 . . Fabricators . | . . . . . Repair Stations . | . . . . . Recycling Units 3 | . 3 . . . Scanalyzers . | . . . . . Garrison Access . | . . . . . Terminal Hacks 5 | . 2 2 1 . Open Door 1 | . . 1 . . Branch Access Points 1 | . 1 . . . Hauler Manifests 1 | . 1 . . . Zone Layout 1 | . . 1 . . Derelict Proto ID Bank 1 | . . . 1 . Fabricator Hacks . | . . . . . Repair Station Hacks . | . . . . . Recycling Unit Hacks 2 | . 2 . . . Retrieve Components 2 | . 2 . . . Scanalyzer . | . . . . . Garrison Access Hacks . | . . . . . Unauthorized Hacks 15 | . 14 1 . . Terminals 15 | . 14 1 . . Assimilate 7 | . 7 . . . Botnet 8 | . 7 1 . . Fabricators . | . . . . . Repair Stations . | . . . . . Recycling Units . | . . . . . Scanalyzers . | . . . . . Garrison Access . | . . . . . Data Cores Recovered . | . . . . . Used . | . . . . . Hacking Detections 9 | . 8 1 . . Full Trace Events 5 | . 5 . . . Feedback Events . | . . . . . Feedback Blocked . | . . . . . Robot Schematics Acquired . | . . . . . Robots Built . | . . . . . Authchips . | . . . . . Time . | . . . . . Total Robot Build Rating . | . . . . . Part Schematics Acquired . | . . . . . Parts Built . | . . . . . Authchips . | . . . . . Time . | . . . . . Total Part Build Rating . | . . . . . Parts Repaired . | . . . . . Time . | . . . . . Parts Recycled . | . . . . . Recycled Matter . | . . . . . Retrieved Matter . | . . . . . Retrieved Components 11 | . 11 . . . Parts Scanalyzed . | . . . . . Part Schematics Acquired . | . . . . . Parts Damaged . | . . . . . Bothacking | -11 -10 -10 -10 -9 ------------ Run | Yrd Mat Min Exi Min Used RIF Installer . | . . . . . Robots Hacked . | . . . . . Non-combat . | . . . . . Combat . | . . . . . Robot Hacks Applied . | . . . . . Relay Couplers Released . | . . . . . Fabnet Peak Effective % . | . . . . . Robots Rewired . | . . . . . Allies Hacked . | . . . . . Hacks Repelled . | . . . . . Allies | -11 -10 -10 -10 -9 -------- Run | Yrd Mat Min Exi Min Total Allies 4 | . . 1 . 3 Largest Group 3 | . . 1 1 3 Highest-Rated Group 40 | . . 31 31 40 Highest-Rated Ally 31 | . . 31 31 16 Total Orders . | . . . . . Ally Attacks 13 | . . . . 13 Total Damage 123 | . . . . 123 Kills 2 | . . . . 2 Allies Corrupted . | . . . . . Allies Melted . | . . . . . Intel | -11 -10 -10 -10 -9 ------- Run | Yrd Mat Min Exi Min Robot Analysis Total . | . . . . . Derelict Logs Recovered 3 | . . 2 . 1 Drone Launches . | . . . . . Drone Recoveries . | . . . . . Exploration | -11 -10 -10 -10 -9 ------------- Run | Yrd Mat Min Exi Min Turns Passed 2078 | 113 755 867 260 83 Spaces Moved 1736 | 72 591 746 271 56 Core 6 | 6 . . . . Treads . | . . . . . Legs . | . . . . . Wheels 1730 | 66 591 746 271 56 Hover . | . . . . . Flight . | . . . . . Fastest Speed 50 | 50 90 95 95 95 Average Speed 97 | 91 100 97 95 95 Slowest Speed 150 | 150 115 110 95 95 Overloaded Moves . | . . . . . Propulsion Burnouts . | . . . . . Robots Hopped . | . . . . . Cave-ins Triggered . | . . . . . Exploration Rate (%) 52 | 4 83 95 61 17 Regions Visited 4 Branch Regions 3 Pre-discovered Areas 2 | . . 2 . . Known Exits Taken 1 | . 1 . . . Unknown Exits Taken 3 | 1 . 1 1 . Scrap Searched 1 | . . 1 . . Spaces Dug 8 | . . . . 8 Terrain Destroyed 205 | . 41 78 . 86 Melee . | . . . . . Projectile . | . . . . . AOE 205 | . 41 78 . 86 Terrain Rammed . | . . . . . Walls Destroyed . | . . . . . Machines Disabled . | . . . . . Actions | -11 -10 -10 -10 -9 --------- Run | Yrd Mat Min Exi Min Total 1968 | 95 693 834 274 72 Wait 17 | . 15 2 . . Move 1732 | 71 590 745 270 56 Hop . | . . . . . Pick Up 38 | 8 20 7 2 1 Fast Attach 13 | 6 7 . . . Attach 7 | . 1 4 . 2 Detach 2 | . 1 1 . . Swap 16 | . 5 11 . . Drop 28 | . 14 12 2 . Fire 108 | 10 40 45 . 13 Melee 7 | . . 7 . . Ram . | . . . . . Kick . | . . . . . Crush . | . . . . . Escape Stasis . | . . . . . Rewire . | . . . . . Trap . | . . . . . Miscellaneous . | . . . . . Route ------- -11/Scrapyard -10/Materials (discovered 3 exits: [*Mat] / *Min x2) -10/Mines (discovered 3 exits: [*Mat x2] / *Exi) -10/Exiles (discovered 2 exits: [*Min x2]) -9/Mines History --------- Turn | Location | Event 16 | -11/Scrapyard | Discovered new exit (range 15) 114 | -11/Scrapyard | Entered Materials 330 | -10/Materials | Build established: Mutant 587 | -10/Materials | Discovered new exit (range 13) 589 | -10/Materials | Identified exit to Mines 666 | -10/Materials | Discovered new exit (range 10) 869 | -10/Materials | Entered Mines 880 | -10/Mines | Discovered new exit (range 7) 1042 | -10/Mines | Met a Derelict shopkeep closing up shop 1200 | -10/Mines | Discovered new exit (range 3) 1460 | -10/Mines | Received a Rocket Launcher from a helpful Derelict 1485 | -10/Mines | Learned location of Storage (-7) 1596 | -10/Mines | Core integrity fell below 50% 1662 | -10/Mines | Escorted by a lone wolf Derelict 1730 | -10/Mines | Deemed a non-threat by the Exiles lab entrance 1730 | -10/Mines | Discovered new exit (range 5) 1736 | -10/Mines | Entered Exiles 1736 | -10/Exiles | Accompanied by 1 ally 1756 | -10/Exiles | Discovered new exit (range 15) 1770 | -10/Exiles | Met 8R-AWN 1784 | -10/Exiles | Met EX-HEX 1813 | -10/Exiles | Met EX-BIN 1827 | -10/Exiles | Aligned with FarCom system 1828 | -10/Exiles | Given EX-Vault access code 1852 | -10/Exiles | Opened EX-Vault 1863 | -10/Exiles | Found Trap Reconfigurator 1884 | -10/Exiles | Warned to stay clear of 0b10 Research branches 1911 | -10/Exiles | Met EX-DEC 1984 | -10/Exiles | Discovered new exit (range 12) 1996 | -10/Exiles | Left Exiles lab with Trap Reconfigurator 1996 | -10/Exiles | Entered Mines 2012 | -9/Mines | Assembled infested the area 2028 | -9/Mines | Assisted by bots powering up and referring to "LRC-V3" 2048 | -9/Mines | Core integrity fell below 20% 2077 | -9/Mines | Lost 3 allies 2079 | -9/Mines | Destroyed 15 combat bots 2079 | -9/Mines | Destroyed by D-53 Grenadier with Mini Grenade Launcher Last Messages --------------- 02044_ as-75448 destroyed. 02046_ Trooper 2b destroyed. 02046_ as-11825 destroyed. 02049_ as-41077 destroyed. 02051_ as-40213 destroyed. 02052_ Lgt. Cannon destroyed. 02053_ Destroyed Asb. Blade. 02053_ as-32339 destroyed. 02057_ The unstable cave ceiling collapses. 02058_ as-46262 destroyed. [Achievement: Exterminator] 02059_ The unstable cave ceiling collapses. 02060_ Acquired 7 matter. 02062_ Acquired Lgt. Nuclear Core. 02068_ The unstable cave ceiling collapses. 02074_ C-30 ARC bursts open, deploying its payload. 02074_ D-53 Grenadier unfolds itself. 02079_ Rocket Launcher destroyed. 02079_ Wheel destroyed. Map ----- +----------------------------------------------------+ | ????????????????????????????????????????? | | ????????????????????????????????????????? | | ????????????????????????????????????????? | | ????????????????????????????????????????? | | ????????????????????????????????????????? | | ????????????????????????????????????????? | | ????????????????????????????????????????? | | ????????????????????????????????????????? | | ????????????????????????????????????????? | | ????????????????????????????????????????? | | ????????????????????????????????????????? | | ????????????????????????????????????????? | | ?????????????????????????????? ????????? | | ?????????????????????????????? ?????????? | | ????????????????????????????? ?????????? | | ????????????????????????????? ??##?###??? | | ???????????????????????????? ### ## ###? | | ???????????????????????????? ## #? | | ???????????????????????????? ## ## | | ???????????????###????????? ## [ | | ???????????????# #???##??? ## [= | | ???????????????# #### ### ## | | ????????????????# ## | | ????????????????# # # | | ????????????????# ### # ##? | | ????????????????## @ ## ####?? | | ??????????????### ## #????? | | ??????????????# # #### #????? | | ??????????????# [ #??# #????? | | ??????????????# % ##??# #????? | | ??????????????# = ####???# #????? | | ??????????????# % ######### #????? | | ??????????????# #????? | | ?????????????# dd ######### #????? | | ?????????????## ##???????# ??? | | ?????????????? ##????????# #?? | | ?????????????? ????????## ##?? | | ??????????????# % ##???????? ##??? | | ??????????????# #????????? #???? | | ??????????????# #????????? #???? | | ????????????? ????????? #???? | | ????????????"% ????????? #???? | | ???????????? % ????????? ???? | | ???????????? ## % ???????? ???? | | ????????????? ??# #???????? ???? | | ???????????????? ???# ???????? ???? | | ??????????????????????#???????????? ????? | | ????????????????????????????????????????? | | ????????????????????????????????????????? | | ????????????????????????????????????????? | +----------------------------------------------------+ Best States ------------- Heat Dissipation 25 Energy Generation 10 Energy Capacity 250 Matter Stores 300 Matter Capacity 300 Sight Range 16 Terrain Scan Density 10 Power Shielding 33 Evasion (%) 42 Item Schematics ----------------- None Robot Schematics ------------------ None Fabricated ------------ Nothing Alien Tech Used ----------------- None Achievements -------------- Exterminator Challenges ------------ None Game ------ Seed LobotomyFissionArmor Manual? 0 Play Time 00:28:25 Cumulative 41.0 hours Start 2024.04.12 @ 04:03:15 End 2024.04.12 @ 11:30:17 Sessions 1 Manual Loads 0 Difficulty Rogue Special Mode None Game No. 43 Rogue 43 Adventurer 0 Explorer 0 Win Type - Total 0 Types 0/0/0/0/0/0/0/0/0 Lore% 16 Gallery% 33 Achievement% 26 Wizard Run 0 Options --------- Layout 1 ASCII 0 Keyboard 1 Movement Vi Keybinds 0 Fullscreen 1 Font 24/Smallcaps Map View 50x35 Zoom Use 0% Tactical HUD 1 Map Filters NONE Filters NONE Steam 1 RUN: 24101cba-cd72-44e0-859d-391cacb189d6